fUST/lending_fUST_20240417
["ID","MTS","AMOUNT","RATE_DAILY","PERIOD"]
[322788654,1713293376300,-500.0,0.00038356,40]
[322788655,1713293376325,-500.0,0.00038356,40]
[322788656,1713293376350,-500.0,0.00038356,40]
[322788657,1713293376374,-500.0,0.00038356,40]
[322788658,1713293376399,-500.0,0.00038356,40]
[322788659,1713293376426,-500.0,0.00038356,40]
[322788660,1713293376454,-500.0,0.00038356,40]
[322788661,1713293376479,-500.0,0.00038356,40]
[322788662,1713293376510,-500.0,0.00038356,40]
[322788663,1713293376534,-500.0,0.00038356,40]
[322788664,1713293376557,-500.0,0.00038356,40]
[322788665,1713293376581,-414.58544076,0.00038356,40]
[322788666,1713293376606,-500.0,0.00038356,40]
[322788667,1713293376631,-506.9543067,0.00038356,40]
[322788668,1713293376658,-500.0,0.00038356,40]
[322788669,1713293376683,-500.0,0.00038356,40]
[322788670,1713293376709,-500.0,0.00038356,40]
[322788671,1713293376739,-500.0,0.00038356,40]
[322788672,1713293376764,-500.0,0.00038356,40]
[322788673,1713293376789,-500.0,0.00038356,40]
[322788674,1713293376814,-500.0,0.00038356,40]
[322788675,1713293376840,-500.0,0.00038356,40]
[322788676,1713293376865,-500.0,0.00038356,40]
[322788677,1713293376890,-500.0,0.00038356,40]
[322788678,1713293376915,-500.0,0.00038356,40]
[322788679,1713293376940,-500.0,0.00038356,40]
[322788680,1713293376963,-500.0,0.00038356,40]
[322788681,1713293376990,-500.0,0.00038356,40]
[322788682,1713293377013,-500.0,0.00038356,40]
[322788683,1713293377037,-500.0,0.00038356,40]
[322788684,1713293377060,-170.44559561,0.00038356,40]
[322788685,1713293377084,-528.32074702,0.00038356,40]
[322788686,1713293377107,-500.0,0.00038356,40]
[322788687,1713293377130,-500.0,0.00038356,40]
[322788688,1713293377152,-500.0,0.00038356,40]
[322788689,1713293377174,-500.0,0.00038356,40]
[322788690,1713293377197,-500.0,0.00038356,40]
[322788691,1713293377219,-551.96,0.00038356,40]
[322788692,1713293377242,-500.0,0.00038356,40]
[322788693,1713293377266,-500.0,0.00038356,40]
[322788694,1713293377289,-500.0,0.00038356,40]
[322788695,1713293377311,-700.0,0.000384,10]
[322788696,1713293377336,-155.65530819,0.000395,120]
[322788697,1713293377360,-56779.90422812,0.0004,15]
[322788698,1713293377385,-5828.94211771,0.0004,20]
[322788699,1713293377408,-955.64435839,0.0004,10]
[322788700,1713293377431,-327.8248124,0.0004,30]
[322788701,1713293377453,-154.10504796,0.00040056,30]
[322788702,1713293377477,-160.0,0.00040095,10]
[322788703,1713293377658,-159.24718613,0.00040102,30]
[322788704,1713293377682,-159.24718613,0.00040138,30]
[322788705,1713293377707,-213.52189365,0.00040146,30]
[322788706,1713293377730,-153.32847724,0.00040196,30]
[322788707,1713293377754,-159.24718613,0.00040202,30]
[322788708,1713293377777,-213.52189365,0.00040299,30]
[322788709,1713293377801,-213.52189365,0.00040455,30]
[322788710,1713293377823,-213.52189365,0.0004048,30]
[322788711,1713293377848,-154.10504796,0.00040497,30]
[322788712,1713293377870,-150.47048876,0.00040526,30]
[322788713,1713293377893,-150.47048876,0.00040559,30]
[322788714,1713293377916,-160.0,0.00040594,11]
[322788715,1713293377938,-213.52189365,0.00040815,30]
[322788716,1713293377962,-150.47048876,0.00040817,30]
[322788717,1713293377984,-150.47048876,0.0004085,30]
[322788718,1713293378010,-154.10504796,0.0004086,30]
[322788719,1713293378032,-159.24718613,0.0004089,30]
[322788720,1713293378054,-154.10504796,0.0004098,30]
[322788721,1713293378077,-213.52189365,0.0004098,30]
[322788722,1713293378101,-213.52189365,0.00040998,30]
[322788723,1713293378123,-159.24718613,0.00041012,30]
[322788724,1713293378145,-154.10504796,0.00041021,30]
[322788725,1713293378167,-160.0,0.00041092,12]
[322788726,1713293378189,-500.0,0.00041095,30]
[322788727,1713293378212,-225.70341701,0.00041095,30]
[322788728,1713293378238,-159.24851255,0.00041095,120]
[322788729,1713293378263,-213.52189365,0.00041107,30]
[322788730,1713293378284,-153.32847724,0.00041178,30]
[322788731,1713293378307,-153.32847724,0.00041181,30]
[322788732,1713293378330,-159.24718613,0.00041189,30]
[322788733,1713293378354,-213.52189365,0.0004121,30]
[322788734,1713293378376,-150.47048876,0.00041213,30]
[322788735,1713293378399,-213.52189365,0.00041269,30]
[322788736,1713293378422,-159.24718613,0.00041397,30]
[322788737,1713293378443,-153.32847724,0.00041427,30]
[322788738,1713293378465,-150.47048876,0.00041433,30]
[322788739,1713293378491,-153.32847724,0.00041504,30]
[322788740,1713293378517,-1206.79320679,0.00041507,30]
[322788741,1713293378540,-1755.878222,0.00041553,120]
[322788742,1713293378564,-160.0,0.00041591,13]
[322788743,1713293378585,-213.52189365,0.00041617,30]
[322788744,1713293378607,-213.52189365,0.00041647,30]
[322788745,1713293378630,-150.47048876,0.00041705,30]
[322788746,1713293378652,-159.24718613,0.00041763,30]
[322788747,1713293378673,-153.32847724,0.00041766,30]
[322788748,1713293378695,-150.47048876,0.00041768,30]
[322788749,1713293378718,-213.52189365,0.00041835,30]
[322788750,1713293378743,-153.32847724,0.00041915,30]
[322788751,1713293378765,-154.10504796,0.00041918,30]
[322788752,1713293378787,-213.52189365,0.00041919,30]
[322788753,1713293378809,-159.24718613,0.00041943,30]
[322788754,1713293378831,-153.32847724,0.00041962,30]
[322788755,1713293378853,-150.47048876,0.00041997,30]
[322788756,1713293378875,-443.60714944,0.00042,120]
[322788757,1713293378897,-213.52189365,0.00042037,30]
[322788758,1713293378921,-154.10504797,0.00042061,30]
[322788759,1713293378943,-153.32847724,0.0004208,30]
[322788760,1713293378965,-160.0,0.0004209,14]
[322788761,1713293378988,-150.47048876,0.00042097,30]
[322788762,1713293379010,-150.47048876,0.00042118,30]
[322788763,1713293379032,-159.24718624,0.00042182,30]
[322788764,1713293379055,-213.52189365,0.00042184,30]
[322788765,1713293379077,-2755.40588978,0.00042188,30]
[322788766,1713293379100,-213.52189365,0.00042219,30]
[322788767,1713293379121,-12948.0,0.00042223,30]
[322788768,1713293379144,-2861.62670599,0.00042258,30]
[322788769,1713293379167,-150.47048886,0.00042264,30]
[322788770,1713293379190,-153.32847728,0.00042272,30]
[322788771,1713293379212,-213.52189367,0.00042288,30]
[322788772,1713293379234,-10000.0,0.00042298,30]
[322788773,1713293379256,-10000.0,0.00042298,30]
[322788774,1713293379278,-10885.0,0.000423,53]
[322788775,1713293379300,-10000.0,0.00042315,30]
[322788776,1713293379322,-517.17259006,0.000424,120]
[322788777,1713293379344,-160.0,0.00042588,15]
[322788778,1713293379366,-34613.19146412,0.00042616,20]
[322788782,1713293404532,-159.86622616,0.0003189,10]
[322788783,1713293404742,-165388.71742666,0.00042616,20]
[322788784,1713293404769,-160.0,0.00043087,16]
[322788785,1713293404795,-160.0,0.00043586,17]
[322788786,1713293407014,175613.35946481,0.00042616,120]
[322788826,1713293431940,-510.78993135,0.00027396,2]
[322788827,1713293431950,-279.21894,0.00027397,2]
[322788828,1713293431959,-208.38469,0.00027397,2]
[322788829,1713293431968,-188.094729,0.00027512,2]
[322788830,1713293431978,-189.43944402,0.00028169,2]
[322789154,1713294632134,-400.61665992,0.00027397,30]
[322789364,1713294643434,-3747.38334008,0.00027397,30]
[322789365,1713294643443,-186.598772,0.00027397,2]
[322789366,1713294643452,-96.45094041,0.00027397,2]
[322789367,1713294643463,-79.33043759,0.00027397,2]
[322789368,1713294643473,-188.094729,0.00027528,2]
[322789369,1713294643482,-179.36474,0.0002773,2]
[322789370,1713294643491,-200.0,0.0002816,2]
[322789372,1713294643501,-755.28547886,0.00028169,2]
[322789374,1713294643510,-700.95984367,0.00028169,4]
[322789606,1713295832288,-202.89124195,0.00025937,2]
[322789607,1713295832300,-65.93874621,0.00026069,2]
[322789608,1713295832399,-84.06125379,0.00026069,2]
[322789609,1713295832412,-179.364738,0.00027395,2]
[322789610,1713295832422,-109.71015068,0.00027397,2]
[322789611,1713295832435,-155.54784232,0.00027397,2]
[322789612,1713295832445,-188.094729,0.00027397,2]
[322789613,1713295832456,-631.28856124,0.0002753,2]
[322789614,1713295832467,-2361.28772116,0.00028169,4]
[322789615,1713295832478,-755.28547886,0.00028169,2]
[322789616,1713295832488,-22.77818155,0.000282,2]
[322790050,1713297032536,-622.83952412,0.00025696,2]
[322790052,1713297032545,-154.84515485,0.00025697,2]
[322790054,1713297032554,-882.54597478,0.00025698,2]
[322790056,1713297032564,-4756.24864476,0.000257,2]
[322790058,1713297032575,-300.0,0.00025801,2]
[322790060,1713297032585,-300.0,0.00025801,2]
[322790062,1713297032593,-7305.94279521,0.00025802,2]
[322790366,1713298232678,-474.09698866,0.00021929,2]
[322790367,1713298232688,-6065.12028442,0.0002193,2]
[322790368,1713298232698,-300.0,0.00021931,2]
[322790369,1713298232708,-178.0,0.00021931,2]
[322790370,1713298232718,-6556.47104906,0.00021932,5]
[322790371,1713298232728,-420.0,0.00024124,2]
[322790372,1713298232737,-154.84515485,0.00025797,2]
[322790373,1713298232747,-541.33661638,0.00025802,2]
[322790374,1713298232757,-3062.24756483,0.00025802,4]
[322790375,1713298232766,-281.7045139,0.00025929,2]
[322790376,1713298232777,-179.364738,0.00025989,2]
[322790378,1713298232788,-587.0,0.00026536,2]
[322790380,1713298232800,-3010.99416666,0.000267,4]
[322790382,1713298232809,-306.0,0.00027041,2]
[322790384,1713298232818,-153.0,0.00027178,2]
[322790385,1713298232827,-153.0,0.00027378,2]
[322790386,1713298232837,-153.0,0.00027378,2]
[322790387,1713298232848,-153.0,0.00027378,2]
[322790388,1713298232857,-153.0,0.00027378,2]
[322790389,1713298232868,-283.2218185,0.00027378,2]
[322790390,1713298232878,-197.965455,0.00027397,2]
[322790391,1713298232888,-177.268833,0.00027397,2]
[322790392,1713298232899,-175.781378,0.00027397,2]
[322790393,1713298232911,-251.995093,0.00027397,2]
[322790394,1713298232925,-153.0,0.00027397,2]
[322790395,1713298232934,-153.0,0.00027397,2]
[322790396,1713298232945,-620.56442806,0.00027461,2]
[322790397,1713298232954,-151.0,0.00027461,2]
[322790398,1713298232966,-224.742674,0.00027461,2]
[322790399,1713298232975,-151.0,0.00027461,2]
[322790400,1713298232986,-151.0,0.00027461,2]
[322790401,1713298232997,-797.880725,0.00027461,2]
[322790402,1713298233008,-797.880725,0.00027461,2]
[322790403,1713298233018,-151.0,0.00027461,2]
[322790404,1713298233028,-151.0,0.00027461,2]
[322790405,1713298233038,-1039.930878,0.00027461,2]
[322790406,1713298233050,-1039.930878,0.00027461,2]
[322790407,1713298233061,-1039.930878,0.00027461,2]
[322790408,1713298233072,-1039.930878,0.00027461,2]
[322790409,1713298233083,-1866.441325,0.00027461,2]
[322790410,1713298233094,-1866.441325,0.00027461,2]
[322790411,1713298233104,-1866.441325,0.00027461,2]
[322790412,1713298233114,-1866.441325,0.00027461,2]
[322790413,1713298233125,-151.0,0.00027461,2]
[322790414,1713298233135,-151.0,0.00027461,2]
[322790415,1713298233146,-153.0,0.00027578,2]
[322790416,1713298233156,-232.160475,0.00027678,2]
[322790417,1713298233167,-151.0,0.00027678,2]
[322790418,1713298233178,-151.0,0.00027678,2]
[322790419,1713298233188,-6328.766933,0.00027678,2]
[322790420,1713298233199,-6328.766933,0.00027678,2]
[322790421,1713298233209,-151.0,0.00027678,2]
[322790422,1713298233219,-151.0,0.00027678,2]
[322790423,1713298233229,-1039.930878,0.00027678,2]
[322790424,1713298233239,-1039.930878,0.00027678,2]
[322790425,1713298233249,-1039.930878,0.00027678,2]
[322790426,1713298233259,-1039.930878,0.00027678,2]
[322790427,1713298233269,-1866.441325,0.00027678,2]
[322790428,1713298233279,-1866.441325,0.00027678,2]
[322790429,1713298233288,-1866.441325,0.00027678,2]
[322790430,1713298233301,-1866.441325,0.00027678,2]
[322790431,1713298233311,-151.0,0.00027678,2]
[322790432,1713298233321,-151.0,0.00027678,2]
[322790433,1713298233331,-153.0,0.00027678,2]
[322790434,1713298233341,-153.0,0.00027678,2]
[322790435,1713298233352,-153.0,0.00027678,2]
[322790436,1713298233364,-153.0,0.00027678,2]
[322790437,1713298233374,-151.0,0.00027878,2]
[322790438,1713298233385,-151.0,0.00027878,2]
[322790439,1713298233395,-151.0,0.00027878,2]
[322790440,1713298233406,-151.0,0.00027878,2]
[322790441,1713298233417,-6328.766933,0.00027878,2]
[322790442,1713298233427,-6328.766933,0.00027878,2]
[322790443,1713298233436,-151.0,0.00027878,2]
[322790444,1713298233446,-151.0,0.00027878,2]
[322790445,1713298233456,-151.0,0.00027878,2]
[322790446,1713298233466,-797.880725,0.00027878,2]
[322790447,1713298233476,-797.880725,0.00027878,2]
[322790448,1713298233485,-151.0,0.00027878,2]
[322790449,1713298233494,-151.0,0.00027878,2]
[322790450,1713298233503,-1039.930878,0.00027878,2]
[322790451,1713298233514,-1039.930878,0.00027878,2]
[322790452,1713298233524,-1039.930878,0.00027878,2]
[322790453,1713298233536,-1039.930878,0.00027878,2]
[322790454,1713298233546,-1039.930878,0.00027878,2]
[322790455,1713298233558,-1039.930878,0.00027878,2]
[322790456,1713298233568,-1039.930878,0.00027878,2]
[322790457,1713298233579,-1039.930878,0.00027878,2]
[322790458,1713298233588,-1866.441325,0.00027878,2]
[322790459,1713298233597,-1866.441325,0.00027878,2]
[322790460,1713298233607,-1866.441325,0.00027878,2]
[322790461,1713298233617,-1866.441325,0.00027878,2]
[322790462,1713298233627,-1866.441325,0.00027878,2]
[322790463,1713298233637,-1866.441325,0.00027878,2]
[322790464,1713298233648,-1866.441325,0.00027878,2]
[322790465,1713298233658,-1866.441325,0.00027878,2]
[322790466,1713298233668,-151.0,0.00027878,2]
[322790467,1713298233678,-205.30249,0.00027878,2]
[322790468,1713298233688,-153.0,0.00027878,2]
[322790469,1713298233697,-153.0,0.00027878,2]
[322790470,1713298233708,-153.0,0.00027878,2]
[322790471,1713298233718,-153.0,0.00027878,2]
[322790472,1713298233727,-153.0,0.00027878,2]
[322790473,1713298233737,-159.79084845,0.00027918,3]
[322790474,1713298233747,-151.0,0.00027918,2]
[322790475,1713298233757,-151.0,0.00027918,2]
[322790476,1713298233767,-151.0,0.00027918,2]
[322790477,1713298233777,-797.880725,0.00027918,2]
[322790478,1713298233786,-797.880725,0.00027918,2]
[322790479,1713298233795,-151.0,0.00027918,2]
[322790480,1713298233808,-1039.930878,0.00027918,2]
[322790481,1713298233820,-1039.930878,0.00027918,2]
[322790482,1713298233830,-1039.930878,0.00027918,2]
[322790483,1713298233839,-1039.930873,0.00027918,2]
[322790484,1713298233851,-1866.441325,0.00027918,2]
[322790485,1713298233861,-1866.441325,0.00027918,2]
[322790486,1713298233871,-1866.441325,0.00027918,2]
[322790487,1713298233881,-1866.44132,0.00027918,2]
[322790488,1713298233892,-3000.0,0.00028,4]
[322790489,1713298233901,-151.0,0.00028,2]
[322790490,1713298233911,-151.0,0.00028,2]
[322790491,1713298233921,-151.0,0.00028,2]
[322790492,1713298233934,-151.0,0.00028,2]
[322790493,1713298233944,-6328.766933,0.00028,2]
[322790494,1713298233954,-6328.766933,0.00028,2]
[322790495,1713298233964,-151.0,0.00028,2]
[322790496,1713298233974,-151.0,0.00028,2]
[322790497,1713298233984,-151.0,0.00028,2]
[322790498,1713298233993,-797.880725,0.00028,2]
[322790499,1713298234006,-797.880725,0.00028,2]
[322790500,1713298234017,-22084.38647893,0.00028027,2]
[322790501,1713298234028,-261.42735342,0.000281,2]
[322790502,1713298234037,-163.91782719,0.00028197,2]
[322790503,1713298234046,-185.88478385,0.00028198,2]
[322790504,1713298234057,-250.31248264,0.00028198,90]
[322790505,1713298234067,-151.0,0.00028198,2]
[322790506,1713298234077,-151.0,0.00028198,2]
[322790507,1713298234086,-151.0,0.00028198,2]
[322790508,1713298234097,-797.880725,0.00028198,2]
[322790509,1713298234107,-797.880725,0.00028198,2]
[322790510,1713298234117,-216.09314923,0.00028199,2]
[322790511,1713298234126,-2583.74745148,0.00028199,2]
[322790512,1713298234136,-151.0,0.00028199,2]
[322790513,1713298234146,-6328.766933,0.00028199,2]
[322790514,1713298234155,-6328.766933,0.00028199,2]
[322790515,1713298234165,-151.0,0.00028199,2]
[322790516,1713298234175,-151.0,0.00028199,2]
[322790517,1713298234185,-151.0,0.00028199,2]
[322790518,1713298234195,-797.880725,0.00028199,2]
[322790519,1713298234205,-797.880725,0.00028199,2]
[322790520,1713298234215,-555.2709672,0.00028199,2]
[322790521,1713298234225,-755.28547886,0.000282,2]
[322790522,1713298234235,-151.0,0.000282,2]
[322790523,1713298234245,-151.0,0.000282,2]
[322790524,1713298234254,-151.0,0.000282,2]
[322790525,1713298234263,-151.0,0.000282,2]
[322790526,1713298234272,-151.0,0.000282,2]
[322790527,1713298234282,-151.0,0.000282,2]
[322790528,1713298234291,-151.0,0.000282,2]
[322790529,1713298234302,-173.462891,0.000282,2]
[322790530,1713298234311,-151.0,0.000282,2]
[322790531,1713298234321,-164.763923,0.000282,2]
[322790532,1713298234330,-151.0,0.000282,2]
[322790533,1713298234340,-151.0,0.000282,2]
[322790534,1713298234349,-151.0,0.000282,2]
[322790535,1713298234359,-151.0,0.000282,2]
[322790536,1713298234369,-151.0,0.000282,2]
[322790537,1713298234378,-151.0,0.000282,2]
[322790538,1713298234387,-283.366022,0.000282,2]
[322790539,1713298234397,-151.0,0.000282,2]
[322790540,1713298234406,-285.375807,0.000282,2]
[322790541,1713298234415,-2987.58260022,0.000282,2]
[322790558,1713298238994,-159.79084846,0.00027918,3]
[322790559,1713298239005,-171.34235883,0.000282,2]
[322790744,1713298443015,236.29204197,0.00019,2]
[322790745,1713298466859,276.17371184,0.00019,2]
[322790746,1713298467182,154.84515485,0.00019,2]
[322790747,1713298469082,385.30778688,0.00019,2]
[322790748,1713298470175,691.90408249,0.00019,2]
[322790749,1713298471909,154.84515485,0.00019,2]
[322790750,1713298472018,284.92409229,0.00019,2]
[322790751,1713298472216,200.23123183,0.00019,2]
[322790752,1713298473301,16070.48760402,0.00019,2]
[322790753,1713298475456,154.84515485,0.00019,2]
[322790754,1713298477427,309.62844586,0.00019,2]
[322790755,1713298484183,691.90408249,0.00019,2]
[322790756,1713298487298,16070.48760402,0.00019,2]
[322790757,1713298487921,155.02424103,0.00019,2]
[322790758,1713298488019,284.92409229,0.00019,2]
[322790759,1713298488225,264.61051958,0.00019,2]
[322790760,1713298489000,384.93988964,0.00019,2]
[322790761,1713298489160,191.17635636,0.00019,2]
[322790762,1713298491326,198.68196836,0.00019,2]
[322790763,1713298502181,691.90408249,0.00019,2]
[322790764,1713298504229,220.66364515,0.00019,2]
[322790765,1713298507302,16070.48760402,0.00019,2]
[322790766,1713298507332,309.62844586,0.00019,2]
[322790768,1713298512035,284.92409229,0.00019,2]
[322790769,1713298514246,19163.59764171,0.00019,2]
[322790770,1713298522236,220.66364515,0.00019,2]
[322790771,1713298523303,16070.48760402,0.00019,2]
[322790772,1713298524187,691.90408249,0.00019,2]
[322790773,1713298528203,19163.59764171,0.00019,2]
[322790774,1713298532022,284.92409229,0.00019,2]
[322790775,1713298536234,220.66364515,0.00019,2]
[322790776,1713298538191,445.00360437,0.00019,2]
[322790777,1713298543431,16070.48760402,0.00019,2]
[322790778,1713298544421,19163.59764171,0.00019,2]
[322790779,1713298547006,385.30778688,0.00019,2]
[322790780,1713298547326,309.62844586,0.00019,2]
[322790781,1713298548041,382.4294358,0.00019,2]
[322790782,1713298550391,154.84515485,0.00019,2]
[322790785,1713298558227,200.23123183,0.00019,2]
[322790786,1713298562213,19163.59764171,0.00019,2]
[322790787,1713298563802,-182.65811822,0.00037802,120]
[322790788,1713298563826,-162.05557729,0.00037802,120]
[322790789,1713298563849,-270.62949585,0.00037802,120]
[322790790,1713298563872,-159.82539027,0.00037802,120]
[322790791,1713298563895,-353.71208509,0.00037802,120]
[322790792,1713298563917,-161.94185113,0.00037802,120]
[322790793,1713298563941,-318.0,0.00037802,60]
[322790795,1713298565319,6278.04926168,0.00019,2]
[322790796,1713298568409,154.84515485,0.00019,2]
[322790797,1713298569314,263.85376305,0.00019,2]
[322790798,1713298573077,385.30778688,0.00019,2]
[322790799,1713298574230,174.7350177,0.00019,2]
[322790800,1713298586202,19163.59764171,0.00019,2]
[322790801,1713298586425,154.84515485,0.00019,2]
[322790803,1713298591003,384.75594102,0.00019,2]
[322790804,1713298602425,154.84515485,0.00019,2]
[322790805,1713298612210,19163.59764171,0.00019,2]
[322790807,1713298620424,154.84515485,0.00019,2]
[322790808,1713298628208,19163.59764171,0.00019,2]
[322790809,1713298640417,154.84515485,0.00019,2]
[322790810,1713298648206,19163.59764171,0.00019,2]
[322790812,1713298658417,165.58534136,0.00019,2]
[322790813,1713298668207,19163.59764171,0.00019,2]
[322790836,1713298688213,3159.06767655,0.00019,2]
[322790841,1713299051631,523.70461012,0.00025024,60]
[322790842,1713299146142,523.70461012,0.00025021,60]
[322790843,1713299185901,312.89749026,0.000189,2]
[322790846,1713299230727,523.70461012,0.00025019,60]
[322790847,1713299305204,523.70461012,0.00025026,60]
[322790880,1713299432032,-203.59775165,0.00023793,2]
[322790882,1713299432042,-190.22478185,0.00023794,2]
[322790888,1713299432086,-15.57206942,0.00023794,2]
[322790890,1713299432096,-467.74734708,0.00023794,2]
[322790893,1713299432105,-197.94745985,0.00023795,2]
[322790895,1713299432114,-1488.29556795,0.00023892,2]
[322790897,1713299432124,-312.89749026,0.000239,2]
[322790899,1713299432133,-712.221215,0.00025027,2]
[322790901,1713299432142,-300.0,0.00025242,2]
[322790903,1713299432152,-5348.0630336,0.00025243,2]
[322790905,1713299432161,-193.78440953,0.00026079,60]
[322790907,1713299432170,-300.0,0.00026079,2]
[322790909,1713299432179,-8572.31015287,0.0002608,2]
[322790948,1713299437937,-16317.68984713,0.0002608,2]
[322790949,1713299437947,-770.09535123,0.00026221,3]
[322790950,1713299437958,-236.36856074,0.00026321,2]
[322790951,1713299437968,-539.113023,0.00026321,2]
[322790952,1713299437977,-380.82518365,0.00026321,2]
[322790953,1713299437986,-888.25128644,0.00026321,2]
[322790954,1713299437995,-602.48199524,0.00026321,2]
[322790955,1713299438004,-207.60962088,0.00026321,2]
[322790956,1713299438014,-1089.02483365,0.00026321,2]
[322790957,1713299438023,-654.32187297,0.00026321,2]
[322790958,1713299438032,-185.78816803,0.00026322,2]
[322790959,1713299438042,-569.3901613,0.00026712,2]
[322790960,1713299438051,-161.2517647,0.00027397,2]
[322790961,1713299438060,-188.067182,0.00027397,2]
[322790962,1713299438069,-314.29630469,0.000274,2]
[322790963,1713299438078,-2617.86637794,0.0002746,2]
[322790964,1713299438088,-420.0,0.00027766,2]
[322790965,1713299438096,-3000.0,0.00028,4]
[322790966,1713299438105,-237.3469,0.00028059,2]
[322790967,1713299438115,-472.55600866,0.00028199,2]
[322790968,1713299438124,-3062.24756483,0.000282,4]
[322790969,1713299438133,-234.61038625,0.000282,2]
[322790970,1713299438143,-155.21440017,0.000282,2]
[322790971,1713299438152,-306.0,0.00029397,2]
[322790972,1713299438162,-306.0,0.00029587,2]
[322790973,1713299438171,-2000.0,0.00029734,2]
[322790974,1713299438180,-423.01386106,0.00029734,2]
[322790975,1713299438189,-150.097,0.00029747,2]
[322790976,1713299438198,-150.0,0.00029747,2]
[322790977,1713299438207,-253.72303222,0.00029832,2]
[322790978,1713299438216,-2762.66324515,0.00029832,2]
[322790979,1713299438225,-293.71992944,0.00029832,2]
[322790980,1713299438235,-277.10572932,0.00029832,2]
[322790981,1713299438244,-936.28028027,0.00029832,2]
[322790982,1713299438254,-471.47805904,0.00029832,2]
[322791299,1713300632127,-188.93614172,0.00025999,2]
[322791300,1713300632137,-1280.0,0.00026,2]
[322791301,1713300632146,-182.96331992,0.00027296,2]
[322791302,1713300632159,-176.543867,0.00027397,2]
[322791303,1713300632169,-175.781378,0.00027397,2]
[322791304,1713300632178,-115.01382786,0.00027634,2]
[322791329,1713300638070,-34.98617214,0.00027634,2]
[322791331,1713300638080,-179.364738,0.00027878,2]
[322791333,1713300638089,-356.110607,0.00027882,2]
[322791335,1713300638098,-1743.67345875,0.000279,2]
[322791337,1713300638107,-1365.0781586,0.00028,4]
[322791501,1713301832703,-1089.02483365,0.00025798,2]
[322791503,1713301832713,-187.62122518,0.00025799,2]
[322791505,1713301832722,-200.61549088,0.00025899,2]
[322791506,1713301832731,-612.45757849,0.000259,2]
[322791507,1713301832741,-458.27016977,0.00026392,2]
[322791514,1713301832789,-405.50141499,0.00026392,2]
[322791516,1713301832799,-250.0,0.00027331,2]
[322791517,1713301832808,-221.07930812,0.00027367,2]
[322791532,1713301838459,-408.30505233,0.00025231,2]
[322791533,1713301838469,-300.9185588,0.00027057,2]
[322791535,1713301838478,-42.22099498,0.00027367,2]
[322791537,1713301838488,-239.395338,0.00027397,2]
[322791539,1713301838497,-1000.0,0.00027397,2]
[322791541,1713301838507,-632.18857924,0.00027712,2]
[322791543,1713301838516,-622.466603,0.00027891,2]
[322791546,1713301838526,-300.0,0.00027999,2]
[322791549,1713301838536,-414.87380195,0.00028,4]
[322791776,1713301843555,-1220.04803945,0.00028,4]
[322791777,1713301843565,-154.767848,0.00028,2]
[322791778,1713301843576,-3062.24756483,0.00028,4]
[322791779,1713301843585,-1091.17029631,0.00029731,2]
[322791780,1713301843594,-385.78404295,0.00029832,2]
[322791915,1713303032520,-173.755908,0.00027336,2]
[322791917,1713303032530,-178.663822,0.00027397,2]
[322791919,1713303032539,-147.58027,0.00027397,2]
[322791921,1713303032550,-20.136403,0.00027397,2]
[322791923,1713303032559,-206.48952235,0.00027531,2]
[322791925,1713303032568,-178.25466397,0.00027631,2]
[322791978,1713303040624,-93.94870425,0.00027631,2]
[322791980,1713303040633,-1271.43958689,0.00027644,2]
[322791982,1713303040645,-1191.63432281,0.00027644,2]
[322791984,1713303040654,-181.46491945,0.00028,4]
[322792015,1713303043852,-1646.78649352,0.00028,4]
[322792016,1713303043864,-1171.74858703,0.00028,4]
[322792017,1713303043873,-250.0,0.00028193,2]